[Event "Titled Tuesday Blitz January 10 Early 2023"]
[White "Arjun, Kalyan"]
[Black "surrenderPLS"]
[WhiteFideId "35018701"]
[WhiteElo "2516"]
[BlackElo "2533"]
[Result "1-0"]
[Round "03"]
[TimeControl "180+2"]
[Date "2023.01.10"]
[WhiteClock "0:02:01"]
[BlackClock "0:00:01"]

1. Nf3 {[%clk 0:03:00]}  Nf6 {[%clk 0:02:57]} 2. b3 {[%clk 0:03:00]}  g6 {[%clk 0:02:57]} 3. Bb2 {[%clk 0:03:00]}  Bg7 {[%clk 0:02:57]} 4. g3 {[%clk 0:03:00]}  O-O {[%clk 0:02:58]} 5. Bg2 {[%clk 0:03:01]}  d6 {[%clk 0:02:57]} 6. O-O {[%clk 0:03:01]}  e5 {[%clk 0:02:58]} 7. c4 {[%clk 0:02:58]}  Nc6 {[%clk 0:02:56]} 8. d3 {[%clk 0:02:57]}  h6 {[%clk 0:02:35]} 9. Nbd2 {[%clk 0:02:57]}  Be6 {[%clk 0:02:34]} 10. a3 {[%clk 0:02:57]}  Qd7 {[%clk 0:02:32]} 11. b4 {[%clk 0:02:56]}  Bh3 {[%clk 0:02:23]} 12. b5 {[%clk 0:02:53]}  Ne7 {[%clk 0:02:22]} 13. a4 {[%clk 0:02:53]}  Bxg2 {[%clk 0:02:12]} 14. Kxg2 {[%clk 0:02:54]}  Nh5 {[%clk 0:02:06]} 15. Qb3 {[%clk 0:02:42]}  f5 {[%clk 0:02:00]} 16. c5+ {[%clk 0:02:38]}  Kh7 {[%clk 0:01:55]} 17. Rac1 {[%clk 0:02:34]}  f4 {[%clk 0:01:50]} 18. cxd6 {[%clk 0:02:27]}  cxd6 {[%clk 0:01:51]} 19. Ne4 {[%clk 0:02:25]}  fxg3 {[%clk 0:01:38]} 20. fxg3 {[%clk 0:02:24]}  Qg4 {[%clk 0:00:42]} 21. Nf2 {[%clk 0:02:15]}  Qd7 {[%clk 0:00:28]} 22. e4 {[%clk 0:02:09]}  Rac8 {[%clk 0:00:21]} 23. Rxc8 {[%clk 0:02:08]}  Rxc8 {[%clk 0:00:20]} 24. Rc1 {[%clk 0:02:07]}  Rxc1 {[%clk 0:00:19]} 25. Bxc1 {[%clk 0:02:07]}  Qc8 {[%clk 0:00:18]} 26. Ba3 {[%clk 0:02:07]}  Qd7 {[%clk 0:00:13]} 27. Qf7 {[%clk 0:02:07]}  Nf6 {[%clk 0:00:09]} 28. Nh4 {[%clk 0:02:05]}  Nfg8 {[%clk 0:00:05]} 29. Nxg6 {[%clk 0:02:02]}  Qd8 {[%clk 0:00:03]} 30. Nxe7 {[%clk 0:02:01]}  Nxe7 {[%clk 0:00:01]} 31. Ng4 {[%clk 0:02:01]} 1-0


[Site "https://www.chess.com"]

[Event "Titled Tuesday Blitz January 10 Early 2023"]
[White "Postny, Evgeny"]
[Black "Abdilkhair, Abilmansur"]
[WhiteFideId "2804344"]
[BlackFideId "13716417"]
[WhiteElo "2549"]
[BlackElo "2268"]
[Result "1-0"]
[Round "03"]
[TimeControl "180+2"]
[Date "2023.01.10"]
[WhiteClock "0:01:08"]
[BlackClock "0:01:11"]

1. e4 {[%clk 0:03:00]}  e5 {[%clk 0:02:58]} 2. Nf3 {[%clk 0:03:00]}  Nc6 {[%clk 0:02:59]} 3. Bb5 {[%clk 0:03:00]}  a6 {[%clk 0:02:59]} 4. Ba4 {[%clk 0:03:01]}  Nf6 {[%clk 0:02:59]} 5. O-O {[%clk 0:03:01]}  b5 {[%clk 0:02:59]} 6. Bb3 {[%clk 0:03:02]}  Be7 {[%clk 0:03:00]} 7. d4 {[%clk 0:02:58]}  exd4 {[%clk 0:02:57]} 8. e5 {[%clk 0:02:57]}  Ne4 {[%clk 0:02:56]} 9. Nxd4 {[%clk 0:02:50]}  O-O {[%clk 0:02:38]} 10. Bd5 {[%clk 0:02:49]}  Nc5 {[%clk 0:02:27]} 11. Nxc6 {[%clk 0:02:43]}  dxc6 {[%clk 0:02:28]} 12. Bxc6 {[%clk 0:02:44]}  Qxd1 {[%clk 0:02:23]} 13. Rxd1 {[%clk 0:02:44]}  Bg4 {[%clk 0:02:22]} 14. f3 {[%clk 0:02:36]}  Rad8 {[%clk 0:02:22]} 15. Re1 {[%clk 0:02:31]}  Bf5 {[%clk 0:02:20]} 16. Nc3 {[%clk 0:02:14]}  Bxc2 {[%clk 0:02:16]} 17. Nd5 {[%clk 0:02:14]}  Bh4 {[%clk 0:01:48]} 18. g3 {[%clk 0:02:13]}  Nd3 {[%clk 0:01:47]} 19. Re2 {[%clk 0:02:06]}  Nxc1 {[%clk 0:01:44]} 20. Rxc2 {[%clk 0:02:00]}  Bg5 {[%clk 0:01:40]} 21. f4 {[%clk 0:01:58]}  Nd3 {[%clk 0:01:41]} 22. fxg5 {[%clk 0:01:57]}  Nxe5 {[%clk 0:01:41]} 23. Ne7+ {[%clk 0:01:36]}  Kh8 {[%clk 0:01:41]} 24. Nf5 {[%clk 0:01:37]}  g6 {[%clk 0:01:38]} 25. Ne3 {[%clk 0:01:26]}  Rd3 {[%clk 0:01:38]} 26. Re1 {[%clk 0:01:24]}  Nxc6 {[%clk 0:01:25]} 27. Rxc6 {[%clk 0:01:23]}  Re8 {[%clk 0:01:25]} 28. Ng2 {[%clk 0:01:14]}  Rxe1+ {[%clk 0:01:17]} 29. Nxe1 {[%clk 0:01:15]}  Rd1 {[%clk 0:01:17]} 30. Kf1 {[%clk 0:01:14]}  Rd2 {[%clk 0:01:15]} 31. Rc2 {[%clk 0:01:13]}  Rd5 {[%clk 0:01:14]} 32. Rxc7 {[%clk 0:01:12]}  Kg7 {[%clk 0:01:12]} 33. h4 {[%clk 0:01:10]}  Rd2 {[%clk 0:01:12]} 34. Rc2 {[%clk 0:01:09]}  Rd4 {[%clk 0:01:11]} 35. Nf3 {[%clk 0:01:08]} 1-0


[Site "https://www.chess.com"]

[Event "Titled Tuesday Blitz January 10 Early 2023"]
[White "Nguyen Hong Nhung"]
[Black "Nigmatov, Ortik"]
[WhiteFideId "12412201"]
[BlackFideId "14202131"]
[WhiteElo "2003"]
[BlackElo "2438"]
[Result "0-1"]
[Round "03"]
[TimeControl "180+2"]
[Date "2023.01.10"]
[WhiteClock "0:00:08"]
[BlackClock "0:01:36"]

1. e4 {[%clk 0:03:00]}  c5 {[%clk 0:02:59]} 2. Nc3 {[%clk 0:03:00]}  d6 {[%clk 0:02:58]} 3. f4 {[%clk 0:03:00]}  Nc6 {[%clk 0:02:57]} 4. Nf3 {[%clk 0:03:01]}  g6 {[%clk 0:02:57]} 5. Bc4 {[%clk 0:03:01]}  Bg7 {[%clk 0:02:57]} 6. O-O {[%clk 0:03:02]}  e6 {[%clk 0:02:58]} 7. d3 {[%clk 0:03:03]}  Nge7 {[%clk 0:02:57]} 8. Qe1 {[%clk 0:03:03]}  O-O {[%clk 0:02:56]} 9. f5 {[%clk 0:03:04]}  gxf5 {[%clk 0:02:56]} 10. Qh4 {[%clk 0:03:04]}  Ng6 {[%clk 0:02:46]} 11. Qh5 {[%clk 0:03:04]}  f4 {[%clk 0:02:45]} 12. Ng5 {[%clk 0:02:44]}  h6 {[%clk 0:02:41]} 13. Nxe6 {[%clk 0:02:24]}  fxe6 {[%clk 0:02:36]} 14. Qxg6 {[%clk 0:02:23]}  Ne5 {[%clk 0:02:37]} 15. Qh5 {[%clk 0:02:14]}  Nxc4 {[%clk 0:02:29]} 16. dxc4 {[%clk 0:02:15]}  Qg5 {[%clk 0:02:29]} 17. Qd1 {[%clk 0:01:48]}  Be5 {[%clk 0:02:16]} 18. Rf3 {[%clk 0:01:36]}  Bd7 {[%clk 0:02:12]} 19. Rg3 {[%clk 0:01:29]}  fxg3 {[%clk 0:02:03]} 20. Bxg5 {[%clk 0:01:30]}  gxh2+ {[%clk 0:02:03]} 21. Kh1 {[%clk 0:01:30]}  hxg5 {[%clk 0:02:03]} 22. Qg4 {[%clk 0:01:22]}  Rf7 {[%clk 0:02:02]} 23. Qxg5+ {[%clk 0:01:15]}  Rg7 {[%clk 0:02:02]} 24. Qd2 {[%clk 0:01:12]}  Rf8 {[%clk 0:02:02]} 25. Re1 {[%clk 0:01:03]}  Be8 {[%clk 0:01:57]} 26. Qh6 {[%clk 0:00:51]}  Rg6 {[%clk 0:01:49]} 27. Qh3 {[%clk 0:00:44]}  Rf2 {[%clk 0:01:48]} 28. Ne2 {[%clk 0:00:36]}  Bc6 {[%clk 0:01:41]} 29. Nc1 {[%clk 0:00:12]}  Bxe4 {[%clk 0:01:38]} 30. Nd3 {[%clk 0:00:07]}  Bxg2+ {[%clk 0:01:38]} 31. Qxg2 {[%clk 0:00:07]}  Rfxg2 {[%clk 0:01:38]} 32. Nxe5 {[%clk 0:00:08]}  dxe5 {[%clk 0:01:36]} 0-1


[Site "https://www.chess.com"]

[Event "Titled Tuesday Blitz January 10 Early 2023"]
[White "Ibadov, Dashgyn"]
[Black "Bykhovsky, Anatoly"]
[WhiteFideId "24107514"]
[BlackFideId "2806991"]
[WhiteElo "2391"]
[BlackElo "2496"]
[Result "1-0"]
[Round "03"]
[TimeControl "180+2"]
[Date "2023.01.10"]
[WhiteClock "0:00:07"]
[BlackClock "0:00:52"]

1. e4 {[%clk 0:03:00]}  e6 {[%clk 0:02:48]} 2. d4 {[%clk 0:02:59]}  d5 {[%clk 0:02:49]} 3. Nc3 {[%clk 0:03:00]}  Bb4 {[%clk 0:02:48]} 4. e5 {[%clk 0:02:59]}  c5 {[%clk 0:02:49]} 5. a3 {[%clk 0:03:00]}  Bxc3+ {[%clk 0:02:49]} 6. bxc3 {[%clk 0:03:00]}  Ne7 {[%clk 0:02:49]} 7. h4 {[%clk 0:02:59]}  Qa5 {[%clk 0:02:49]} 8. Bd2 {[%clk 0:02:59]}  Qa4 {[%clk 0:02:49]} 9. h5 {[%clk 0:02:58]}  b6 {[%clk 0:02:48]} 10. Qg4 {[%clk 0:02:52]}  Kf8 {[%clk 0:02:43]} 11. h6 {[%clk 0:02:52]}  g6 {[%clk 0:02:43]} 12. Nf3 {[%clk 0:02:44]}  Qxc2 {[%clk 0:02:39]} 13. Be2 {[%clk 0:02:11]}  Ba6 {[%clk 0:02:38]} 14. Rc1 {[%clk 0:02:05]}  Qf5 {[%clk 0:02:28]} 15. Qxf5 {[%clk 0:02:04]}  Nxf5 {[%clk 0:02:26]} 16. c4 {[%clk 0:02:02]}  dxc4 {[%clk 0:02:22]} 17. dxc5 {[%clk 0:02:00]}  bxc5 {[%clk 0:02:22]} 18. g4 {[%clk 0:01:51]}  Ne7 {[%clk 0:02:17]} 19. Be3 {[%clk 0:01:46]}  Nd7 {[%clk 0:02:16]} 20. Bxc4 {[%clk 0:01:38]}  Bb7 {[%clk 0:02:00]} 21. Ke2 {[%clk 0:01:08]}  Nc6 {[%clk 0:01:56]} 22. Rhd1 {[%clk 0:01:04]}  Ncxe5 {[%clk 0:01:44]} 23. Nxe5 {[%clk 0:01:04]}  Nxe5 {[%clk 0:01:45]} 24. Bxc5+ {[%clk 0:01:04]}  Kg8 {[%clk 0:01:45]} 25. Bd4 {[%clk 0:00:48]}  Nxc4 {[%clk 0:01:41]} 26. Bxh8 {[%clk 0:00:45]}  Kxh8 {[%clk 0:01:42]} 27. Rd7 {[%clk 0:00:30]}  Bd5 {[%clk 0:01:28]} 28. Rxf7 {[%clk 0:00:28]}  Ne5 {[%clk 0:01:28]} 29. Rfc7 {[%clk 0:00:25]}  Rf8 {[%clk 0:01:00]} 30. Rxa7 {[%clk 0:00:24]}  Nxg4 {[%clk 0:01:00]} 31. Rcc7 {[%clk 0:00:24]}  Nf6 {[%clk 0:01:00]} 32. Rf7 {[%clk 0:00:23]}  Rxf7 {[%clk 0:00:57]} 33. Rxf7 {[%clk 0:00:24]}  Ng8 {[%clk 0:00:57]} 34. Rf8 {[%clk 0:00:22]}  g5 {[%clk 0:00:58]} 35. a4 {[%clk 0:00:21]}  g4 {[%clk 0:00:58]} 36. a5 {[%clk 0:00:20]}  e5 {[%clk 0:00:59]} 37. a6 {[%clk 0:00:19]}  e4 {[%clk 0:00:59]} 38. a7 {[%clk 0:00:17]}  e3 {[%clk 0:00:59]} 39. Kxe3 {[%clk 0:00:16]}  g3 {[%clk 0:00:58]} 40. fxg3 {[%clk 0:00:16]}  Bg2 {[%clk 0:00:58]} 41. Kd4 {[%clk 0:00:13]}  Bh1 {[%clk 0:00:58]} 42. Ke5 {[%clk 0:00:14]}  Bg2 {[%clk 0:00:59]} 43. Ke6 {[%clk 0:00:12]}  Bh1 {[%clk 0:00:59]} 44. Kd7 {[%clk 0:00:11]}  Bg2 {[%clk 0:00:59]} 45. g4 {[%clk 0:00:11]}  Bh1 {[%clk 0:00:59]} 46. g5 {[%clk 0:00:12]}  Bg2 {[%clk 0:00:59]} 47. Ke6 {[%clk 0:00:11]}  Bh1 {[%clk 0:00:59]} 48. g6 {[%clk 0:00:08]}  hxg6 {[%clk 0:00:59]} 49. Kf7 {[%clk 0:00:09]}  Kh7 {[%clk 0:00:54]} 50. Rxg8 {[%clk 0:00:08]}  Bd5+ {[%clk 0:00:54]} 51. Kf8 {[%clk 0:00:08]}  Kxh6 {[%clk 0:00:52]} 52. Ke7 {[%clk 0:00:05]}  g5 {[%clk 0:00:50]} 53. a8=Q {[%clk 0:00:05]}  Bxa8 {[%clk 0:00:50]} 54. Rxa8 {[%clk 0:00:06]}  g4 {[%clk 0:00:51]} 55. Ra5 {[%clk 0:00:06]}  g3 {[%clk 0:00:51]} 56. Kf6 {[%clk 0:00:05]}  g2 {[%clk 0:00:50]} 57. Ra1 {[%clk 0:00:05]}  Kh5 {[%clk 0:00:51]} 58. Rg1 {[%clk 0:00:06]}  Kh4 {[%clk 0:00:51]} 59. Rxg2 {[%clk 0:00:07]}  Kh3 {[%clk 0:00:52]} 60. Rg5 {[%clk 0:00:07]} 1-0


[Site "https://www.chess.com"]

[Event "Titled Tuesday Blitz January 10 Early 2023"]
[White "Cherniaiev, Tykhon"]
[Black "Gaitan, Juan Manuel"]
[WhiteFideId "14182360"]
[BlackFideId "121657"]
[WhiteElo "2330"]
[BlackElo "2328"]
[Result "1-0"]
[Round "03"]
[TimeControl "180+2"]
[Date "2023.01.10"]
[WhiteClock "0:00:26"]
[BlackClock "0:00:25"]

1. e4 {[%clk 0:03:00]}  e5 {[%clk 0:02:54]} 2. Nf3 {[%clk 0:03:00]}  Nf6 {[%clk 0:02:54]} 3. d4 {[%clk 0:03:00]}  Nxe4 {[%clk 0:02:54]} 4. dxe5 {[%clk 0:02:59]}  d5 {[%clk 0:02:53]} 5. exd6 {[%clk 0:02:56]}  Bxd6 {[%clk 0:02:51]} 6. Bd3 {[%clk 0:02:57]}  Nc5 {[%clk 0:02:51]} 7. Qe2+ {[%clk 0:02:48]}  Qe7 {[%clk 0:02:50]} 8. Qxe7+ {[%clk 0:02:48]}  Bxe7 {[%clk 0:02:51]} 9. Be2 {[%clk 0:02:44]}  Bf5 {[%clk 0:02:50]} 10. Nd4 {[%clk 0:02:41]}  Be4 {[%clk 0:02:49]} 11. Nc3 {[%clk 0:02:39]}  Bxg2 {[%clk 0:02:42]} 12. Rg1 {[%clk 0:02:38]}  Bc6 {[%clk 0:02:43]} 13. Bf4 {[%clk 0:02:09]}  Bf6 {[%clk 0:02:39]} 14. Nxc6 {[%clk 0:02:04]}  Bxc3+ {[%clk 0:02:34]} 15. bxc3 {[%clk 0:02:03]}  Nxc6 {[%clk 0:02:34]} 16. Bxc7 {[%clk 0:01:54]}  Ne6 {[%clk 0:02:31]} 17. Bd6 {[%clk 0:01:53]}  O-O-O {[%clk 0:02:30]} 18. O-O-O {[%clk 0:01:50]}  h5 {[%clk 0:02:28]} 19. Bc4 {[%clk 0:01:45]}  Rhe8 {[%clk 0:02:22]} 20. f4 {[%clk 0:01:22]}  g6 {[%clk 0:02:18]} 21. Rgf1 {[%clk 0:01:20]}  Ne7 {[%clk 0:00:46]} 22. Be5 {[%clk 0:00:59]}  Nf5 {[%clk 0:00:44]} 23. Rde1 {[%clk 0:00:51]}  a6 {[%clk 0:00:39]} 24. Bf6 {[%clk 0:00:38]}  Rd6 {[%clk 0:00:40]} 25. Be5 {[%clk 0:00:38]}  Rd7 {[%clk 0:00:37]} 26. Bd3 {[%clk 0:00:37]}  Neg7 {[%clk 0:00:33]} 27. Re4 {[%clk 0:00:33]}  Rde7 {[%clk 0:00:29]} 28. Rc4+ {[%clk 0:00:32]}  Kd8 {[%clk 0:00:27]} 29. Bf6 {[%clk 0:00:29]}  Kd7 {[%clk 0:00:26]} 30. Rd1 {[%clk 0:00:26]}  Ne3 {[%clk 0:00:25]} 31. Bf5# {[%clk 0:00:26]} 1-0


[Site "https://www.chess.com"]

[Event "Titled Tuesday Blitz January 10 Early 2023"]
[White "Domingo Nunez, Ruben"]
[Black "Shuvalov, Evgenij"]
[WhiteFideId "22245570"]
[BlackFideId "4187237"]
[WhiteElo "2416"]
[BlackElo "2038"]
[Result "1-0"]
[Round "03"]
[TimeControl "180+2"]
[Date "2023.01.10"]
[WhiteClock "0:00:15"]
[BlackClock "0:00:07"]

1. e4 {[%clk 0:03:00]}  e6 {[%clk 0:02:51]} 2. Nf3 {[%clk 0:03:00]}  d5 {[%clk 0:02:51]} 3. Nc3 {[%clk 0:03:01]}  Nf6 {[%clk 0:02:50]} 4. e5 {[%clk 0:03:02]}  Nfd7 {[%clk 0:02:51]} 5. d4 {[%clk 0:03:02]}  c5 {[%clk 0:02:51]} 6. dxc5 {[%clk 0:03:03]}  Nc6 {[%clk 0:02:51]} 7. Bf4 {[%clk 0:03:04]}  Bxc5 {[%clk 0:02:50]} 8. Bd3 {[%clk 0:03:04]}  f6 {[%clk 0:02:50]} 9. exf6 {[%clk 0:03:05]}  Nxf6 {[%clk 0:02:49]} 10. Qe2 {[%clk 0:03:05]}  O-O {[%clk 0:02:48]} 11. O-O-O {[%clk 0:03:05]}  Bd7 {[%clk 0:02:44]} 12. Bg3 {[%clk 0:03:06]}  Qa5 {[%clk 0:02:40]} 13. Ne5 {[%clk 0:02:52]}  Nd4 {[%clk 0:02:30]} 14. Qe1 {[%clk 0:02:53]}  Be8 {[%clk 0:02:25]} 15. Kb1 {[%clk 0:02:28]}  Bb4 {[%clk 0:02:15]} 16. Bxh7+ {[%clk 0:02:24]}  Kxh7 {[%clk 0:02:01]} 17. Rxd4 {[%clk 0:02:25]}  Ne4 {[%clk 0:01:55]} 18. Rxe4 {[%clk 0:02:15]}  dxe4 {[%clk 0:01:51]} 19. Qxe4+ {[%clk 0:02:16]}  Kg8 {[%clk 0:01:43]} 20. Ne2 {[%clk 0:02:11]}  Qb5 {[%clk 0:01:23]} 21. Nd4 {[%clk 0:02:10]}  Qd5 {[%clk 0:01:23]} 22. Qg4 {[%clk 0:02:06]}  Rf6 {[%clk 0:00:51]} 23. Ndf3 {[%clk 0:01:07]}  Rd8 {[%clk 0:00:40]} 24. a3 {[%clk 0:00:47]}  Bd6 {[%clk 0:00:21]} 25. Nd3 {[%clk 0:00:40]}  Bg6 {[%clk 0:00:16]} 26. Rd1 {[%clk 0:00:37]}  Bxg3 {[%clk 0:00:15]} 27. hxg3 {[%clk 0:00:37]}  Qh5 {[%clk 0:00:10]} 28. Qb4 {[%clk 0:00:32]}  Bxd3 {[%clk 0:00:10]} 29. Ka1 {[%clk 0:00:22]}  Rxf3 {[%clk 0:00:07]} 30. gxf3 {[%clk 0:00:20]}  Qxf3 {[%clk 0:00:08]} 31. Qd2 {[%clk 0:00:17]}  Rd5 {[%clk 0:00:04]} 32. cxd3 {[%clk 0:00:18]}  e5 {[%clk 0:00:04]} 33. Qc2 {[%clk 0:00:18]}  e4 {[%clk 0:00:03]} 34. Qb3 {[%clk 0:00:18]}  exd3 {[%clk 0:00:03]} 35. Ka2 {[%clk 0:00:12]}  a5 {[%clk 0:00:02]} 36. a4 {[%clk 0:00:12]}  b5 {[%clk 0:00:02]} 37. axb5 {[%clk 0:00:12]}  a4 {[%clk 0:00:02]} 38. Qxa4 {[%clk 0:00:13]}  d2 {[%clk 0:00:02]} 39. Qb3 {[%clk 0:00:11]}  Qxb3+ {[%clk 0:00:01]} 40. Kxb3 {[%clk 0:00:12]}  Rxb5+ {[%clk 0:00:02]} 41. Kc2 {[%clk 0:00:13]}  Kf7 {[%clk 0:00:01]} 42. Rxd2 {[%clk 0:00:13]}  Rb7 {[%clk 0:00:01]} 43. Rd4 {[%clk 0:00:14]}  Ke6 {[%clk 0:00:02]} 44. Rf4 {[%clk 0:00:14]}  Ke5 {[%clk 0:00:02]} 45. b4 {[%clk 0:00:15]}  g5 {[%clk 0:00:02]} 46. Rc4 {[%clk 0:00:15]}  Kd5 {[%clk 0:00:02]} 47. Kc3 {[%clk 0:00:15]}  Ke5 {[%clk 0:00:02]} 48. Rc5+ {[%clk 0:00:14]}  Kf6 {[%clk 0:00:02]} 49. f4 {[%clk 0:00:14]}  Re7 {[%clk 0:00:03]} 50. Rxg5 {[%clk 0:00:13]}  Re3+ {[%clk 0:00:03]} 51. Kc4 {[%clk 0:00:14]}  Re1 {[%clk 0:00:04]} 52. b5 {[%clk 0:00:14]}  Rc1+ {[%clk 0:00:04]} 53. Kd5 {[%clk 0:00:14]}  Rb1 {[%clk 0:00:05]} 54. Kc6 {[%clk 0:00:14]}  Rc1+ {[%clk 0:00:06]} 55. Kb7 {[%clk 0:00:15]}  Rb1 {[%clk 0:00:06]} 56. b6 {[%clk 0:00:16]}  Ke6 {[%clk 0:00:06]} 57. Rc5 {[%clk 0:00:14]}  Kd6 {[%clk 0:00:07]} 58. Rc3 {[%clk 0:00:14]}  Ke6 {[%clk 0:00:07]} 59. Kc7 {[%clk 0:00:15]} 1-0


[Site "https://www.chess.com"]

[Event "Titled Tuesday Blitz January 10 Early 2023"]
[White "Hambleton, Aman"]
[Black "Najdin, Danil"]
[WhiteFideId "2606577"]
[BlackFideId "4172426"]
[WhiteElo "2420"]
[BlackElo "2235"]
[Result "0-1"]
[Round "03"]
[TimeControl "180+2"]
[Date "2023.01.10"]
[WhiteClock "0:00:02"]
[BlackClock "0:00:09"]

1. d4 {[%clk 0:03:00]}  Nf6 {[%clk 0:03:00]} 2. c4 {[%clk 0:03:00]}  g6 {[%clk 0:03:00]} 3. Nc3 {[%clk 0:03:00]}  Bg7 {[%clk 0:03:00]} 4. e4 {[%clk 0:03:00]}  d6 {[%clk 0:03:00]} 5. f3 {[%clk 0:02:59]}  O-O {[%clk 0:03:00]} 6. Be3 {[%clk 0:03:00]}  Nc6 {[%clk 0:02:49]} 7. Nge2 {[%clk 0:02:55]}  a6 {[%clk 0:02:50]} 8. Qd2 {[%clk 0:02:53]}  Rb8 {[%clk 0:02:50]} 9. Rc1 {[%clk 0:02:51]}  Bd7 {[%clk 0:02:45]} 10. Nd1 {[%clk 0:02:49]}  b5 {[%clk 0:02:41]} 11. c5 {[%clk 0:02:49]}  d5 {[%clk 0:02:27]} 12. e5 {[%clk 0:02:46]}  Ne8 {[%clk 0:02:27]} 13. Nf2 {[%clk 0:01:41]}  f6 {[%clk 0:02:23]} 14. f4 {[%clk 0:01:41]}  Bh6 {[%clk 0:02:04]} 15. Ng3 {[%clk 0:01:10]}  Ng7 {[%clk 0:01:59]} 16. Bd3 {[%clk 0:00:54]}  Ne6 {[%clk 0:01:48]} 17. Ne2 {[%clk 0:00:52]}  fxe5 {[%clk 0:01:37]} 18. fxe5 {[%clk 0:00:52]}  Bxe3 {[%clk 0:01:32]} 19. Qxe3 {[%clk 0:00:53]}  Ng7 {[%clk 0:01:31]} 20. O-O {[%clk 0:00:45]}  Bf5 {[%clk 0:01:30]} 21. g4 {[%clk 0:00:22]}  Bxd3 {[%clk 0:01:29]} 22. Nxd3 {[%clk 0:00:20]}  Qd7 {[%clk 0:01:23]} 23. h3 {[%clk 0:00:20]}  Ne6 {[%clk 0:01:20]} 24. Kg2 {[%clk 0:00:14]}  Rxf1 {[%clk 0:01:20]} 25. Rxf1 {[%clk 0:00:13]}  Rf8 {[%clk 0:01:21]} 26. Rxf8+ {[%clk 0:00:12]}  Kxf8 {[%clk 0:01:20]} 27. Ndf4 {[%clk 0:00:03]}  Nxf4+ {[%clk 0:01:11]} 28. Nxf4 {[%clk 0:00:04]}  e6 {[%clk 0:01:11]} 29. Qf2 {[%clk 0:00:02]}  Kg7 {[%clk 0:01:10]} 30. Ne2 {[%clk 0:00:02]}  Qf7 {[%clk 0:01:06]} 31. Qe3 {[%clk 0:00:02]}  h6 {[%clk 0:00:50]} 32. b3 {[%clk 0:00:02]}  g5 {[%clk 0:00:48]} 33. Ng3 {[%clk 0:00:02]}  Qg6 {[%clk 0:00:40]} 34. Nh5+ {[%clk 0:00:03]}  Kf7 {[%clk 0:00:41]} 35. Qf2+ {[%clk 0:00:04]}  Ke7 {[%clk 0:00:41]} 36. h4 {[%clk 0:00:01]}  Qe4+ {[%clk 0:00:39]} 37. Kh3 {[%clk 0:00:01]}  Nxd4 {[%clk 0:00:33]} 38. Qf6+ {[%clk 0:00:01]}  Kd7 {[%clk 0:00:33]} 39. Qf7+ {[%clk 0:00:01]}  Kc6 {[%clk 0:00:33]} 40. Qe8+ {[%clk 0:00:01]}  Kb7 {[%clk 0:00:33]} 41. c6+ {[%clk 0:00:01]}  Kb6 {[%clk 0:00:33]} 42. Qb8+ {[%clk 0:00:01]}  Kxc6 {[%clk 0:00:33]} 43. Qa8+ {[%clk 0:00:01]}  Kb6 {[%clk 0:00:33]} 44. Qb8+ {[%clk 0:00:01]}  Kc6 {[%clk 0:00:32]} 45. Qa8+ {[%clk 0:00:02]}  Kc5 {[%clk 0:00:29]} 46. Qa7+ {[%clk 0:00:01]}  Kb4 {[%clk 0:00:29]} 47. Qxc7 {[%clk 0:00:02]}  Qf3+ {[%clk 0:00:16]} 48. Ng3 {[%clk 0:00:02]}  Ne2 {[%clk 0:00:14]} 49. Qd6+ {[%clk 0:00:01]}  Kc3 {[%clk 0:00:10]} 50. Qc5+ {[%clk 0:00:02]}  Kb2 {[%clk 0:00:09]} 0-1


[Site "https://www.chess.com"]

[Event "Titled Tuesday Blitz January 10 Early 2023"]
[White "Ordekalog"]
[Black "Ljukin, Sergei"]
[BlackFideId "14102200"]
[WhiteElo "2635"]
[BlackElo "2362"]
[Result "1-0"]
[Round "03"]
[TimeControl "180+2"]
[Date "2023.01.10"]
[WhiteClock "0:01:13"]
[BlackClock "0:00:06"]

1. e4 {[%clk 0:03:00]}  e6 {[%clk 0:02:59]} 2. Bb5 {[%clk 0:02:57]}  a6 {[%clk 0:02:55]} 3. Ba4 {[%clk 0:02:56]}  b5 {[%clk 0:02:55]} 4. Bb3 {[%clk 0:02:55]}  d5 {[%clk 0:02:53]} 5. exd5 {[%clk 0:02:51]}  exd5 {[%clk 0:02:53]} 6. d4 {[%clk 0:02:50]}  Nf6 {[%clk 0:02:53]} 7. c3 {[%clk 0:02:47]}  Be7 {[%clk 0:02:52]} 8. a4 {[%clk 0:02:46]}  b4 {[%clk 0:02:50]} 9. Nf3 {[%clk 0:02:45]}  O-O {[%clk 0:02:48]} 10. h3 {[%clk 0:02:42]}  Nc6 {[%clk 0:02:47]} 11. O-O {[%clk 0:02:41]}  Rb8 {[%clk 0:02:42]} 12. Re1 {[%clk 0:02:37]}  Re8 {[%clk 0:02:32]} 13. Bg5 {[%clk 0:02:33]}  Ne4 {[%clk 0:02:07]} 14. Bxe7 {[%clk 0:02:26]}  Rxe7 {[%clk 0:02:07]} 15. Nbd2 {[%clk 0:02:22]}  bxc3 {[%clk 0:01:43]} 16. bxc3 {[%clk 0:02:21]}  Na5 {[%clk 0:01:25]} 17. Bc2 {[%clk 0:02:00]}  Nxc3 {[%clk 0:01:24]} 18. Bxh7+ {[%clk 0:01:59]}  Kxh7 {[%clk 0:00:29]} 19. Qc2+ {[%clk 0:01:55]}  Kg8 {[%clk 0:00:29]} 20. Qxc3 {[%clk 0:01:52]}  Rxe1+ {[%clk 0:00:26]} 21. Rxe1 {[%clk 0:01:52]}  c6 {[%clk 0:00:26]} 22. Ne5 {[%clk 0:01:40]}  Be6 {[%clk 0:00:20]} 23. Ndf3 {[%clk 0:01:26]}  Qb6 {[%clk 0:00:13]} 24. Qe3 {[%clk 0:01:23]}  Nc4 {[%clk 0:00:10]} 25. Qf4 {[%clk 0:01:22]}  Nxe5 {[%clk 0:00:09]} 26. Rxe5 {[%clk 0:01:14]}  Qb1+ {[%clk 0:00:08]} 27. Kh2 {[%clk 0:01:14]}  Qg6 {[%clk 0:00:06]} 28. Rg5 {[%clk 0:01:13]}  Qh6 {[%clk 0:00:06]} 29. Qxb8+ {[%clk 0:01:13]} 1-0


[Site "https://www.chess.com"]

[Event "Titled Tuesday Blitz January 10 Early 2023"]
[White "Begunov, Konstantin"]
[Black "Tatarinov, Dmitry"]
[WhiteFideId "4118510"]
[BlackFideId "24160067"]
[WhiteElo "2325"]
[BlackElo "2310"]
[Result "0-1"]
[Round "03"]
[TimeControl "180+2"]
[Date "2023.01.10"]
[WhiteClock "0:00:58"]
[BlackClock "0:02:27"]

1. d4 {[%clk 0:03:00]}  g6 {[%clk 0:03:00]} 2. c4 {[%clk 0:03:00]}  Bg7 {[%clk 0:02:54]} 3. Nc3 {[%clk 0:03:01]}  c5 {[%clk 0:02:54]} 4. Nf3 {[%clk 0:03:01]}  cxd4 {[%clk 0:02:54]} 5. Nxd4 {[%clk 0:03:01]}  Nc6 {[%clk 0:02:55]} 6. e3 {[%clk 0:03:02]}  Nf6 {[%clk 0:02:55]} 7. Be2 {[%clk 0:03:02]}  O-O {[%clk 0:02:55]} 8. O-O {[%clk 0:03:02]}  d5 {[%clk 0:02:56]} 9. cxd5 {[%clk 0:03:03]}  Nxd5 {[%clk 0:02:54]} 10. Nxd5 {[%clk 0:03:03]}  Nxd4 {[%clk 0:02:53]} 11. Nxe7+ {[%clk 0:02:50]}  Qxe7 {[%clk 0:02:53]} 12. exd4 {[%clk 0:02:50]}  Rd8 {[%clk 0:02:54]} 13. Be3 {[%clk 0:02:43]}  Bf5 {[%clk 0:02:51]} 14. Bf3 {[%clk 0:02:33]}  Qb4 {[%clk 0:02:51]} 15. Qb3 {[%clk 0:02:29]}  Qxb3 {[%clk 0:02:50]} 16. axb3 {[%clk 0:02:30]}  Bxd4 {[%clk 0:02:40]} 17. Bxd4 {[%clk 0:01:53]}  Rxd4 {[%clk 0:02:37]} 18. Bxb7 {[%clk 0:01:54]}  Rb8 {[%clk 0:02:38]} 19. Rxa7 {[%clk 0:01:53]}  Rd7 {[%clk 0:02:36]} 20. g4 {[%clk 0:01:32]}  Be6 {[%clk 0:02:28]} 21. h3 {[%clk 0:00:56]}  Rdxb7 {[%clk 0:02:27]} 22. Rxb7 {[%clk 0:00:57]}  Rxb7 {[%clk 0:02:28]} 23. Rd1 {[%clk 0:00:57]}  Rxb3 {[%clk 0:02:29]} 24. Rd2 {[%clk 0:00:58]}  Rxh3 {[%clk 0:02:27]} 0-1


[Site "https://www.chess.com"]